[Event "Titled Tuesday Blitz May 16 Early 2023"]
[White "Jeet, Jain"]
[Black "Brown, Raehanna"]
[WhiteFideId "5073022"]
[BlackFideId "7402740"]
[WhiteElo "2067"]
[BlackElo "1655"]
[Result "1-0"]
[Round "04"]
[TimeControl "180+2"]
[Date "2023.05.16"]
[WhiteClock "0:00:39"]
[BlackClock "0:00:10"]

1. b4 {[%clk 0:03:00]}  Nf6 {[%clk 0:02:55]} 2. Bb2 {[%clk 0:03:01]}  g6 {[%clk 0:02:54]} 3. e3 {[%clk 0:03:01]}  Bg7 {[%clk 0:02:54]} 4. c4 {[%clk 0:03:02]}  O-O {[%clk 0:02:55]} 5. Nf3 {[%clk 0:03:00]}  a5 {[%clk 0:02:55]} 6. b5 {[%clk 0:03:00]}  b6 {[%clk 0:02:52]} 7. d4 {[%clk 0:02:55]}  c6 {[%clk 0:02:42]} 8. a4 {[%clk 0:02:53]}  d5 {[%clk 0:02:42]} 9. cxd5 {[%clk 0:02:51]}  Nxd5 {[%clk 0:02:38]} 10. Na3 {[%clk 0:02:45]}  cxb5 {[%clk 0:02:35]} 11. Bxb5 {[%clk 0:02:43]}  Bb7 {[%clk 0:02:34]} 12. O-O {[%clk 0:02:42]}  Nc6 {[%clk 0:02:29]} 13. Nc4 {[%clk 0:02:39]}  Rc8 {[%clk 0:02:22]} 14. Nce5 {[%clk 0:02:39]}  Nxe5 {[%clk 0:02:20]} 15. Nxe5 {[%clk 0:02:39]}  Nb4 {[%clk 0:02:08]} 16. Rc1 {[%clk 0:02:31]}  Qd5 {[%clk 0:02:07]} 17. f3 {[%clk 0:02:24]}  Rxc1 {[%clk 0:01:56]} 18. Qxc1 {[%clk 0:02:15]}  Rc8 {[%clk 0:01:55]} 19. Bc4 {[%clk 0:02:06]}  Rxc4 {[%clk 0:00:33]} 20. Nxc4 {[%clk 0:01:38]}  Ba6 {[%clk 0:00:32]} 21. Nxb6 {[%clk 0:01:38]}  Qe6 {[%clk 0:00:29]} 22. Qc7 {[%clk 0:01:18]}  Bxf1 {[%clk 0:00:27]} 23. Bc1 {[%clk 0:00:39]}  Ba6 {[%clk 0:00:18]} 24. Qd8+ {[%clk 0:00:39]}  Bf8 {[%clk 0:00:17]} 25. Nd7 {[%clk 0:00:40]}  Kg7 {[%clk 0:00:10]} 26. Qxf8# {[%clk 0:00:39]} 1-0


[Site "https://www.chess.com"]

[Event "Titled Tuesday Blitz May 16 Early 2023"]
[White "Sanchez, Robert"]
[Black "OPQRC"]
[WhiteFideId "2034360"]
[WhiteElo "1873"]
[BlackElo "2553"]
[Result "0-1"]
[Round "04"]
[TimeControl "180+2"]
[Date "2023.05.16"]
[WhiteClock "0:01:52"]
[BlackClock "0:00:16"]

1. e4 {[%clk 0:03:00]}  c5 {[%clk 0:02:56]} 2. Nf3 {[%clk 0:03:00]}  Nc6 {[%clk 0:02:56]} 3. d4 {[%clk 0:03:00]}  cxd4 {[%clk 0:02:57]} 4. Nxd4 {[%clk 0:03:00]}  Nf6 {[%clk 0:02:57]} 5. Nc3 {[%clk 0:03:01]}  e6 {[%clk 0:02:58]} 6. Ndb5 {[%clk 0:03:00]}  Bb4 {[%clk 0:02:57]} 7. a3 {[%clk 0:03:01]}  Bxc3+ {[%clk 0:02:55]} 8. Nxc3 {[%clk 0:03:02]}  d5 {[%clk 0:02:55]} 9. exd5 {[%clk 0:03:02]}  exd5 {[%clk 0:02:52]} 10. Bd3 {[%clk 0:03:01]}  O-O {[%clk 0:02:50]} 11. O-O {[%clk 0:03:01]}  h6 {[%clk 0:02:50]} 12. Bf4 {[%clk 0:02:59]}  Bg4 {[%clk 0:02:38]} 13. f3 {[%clk 0:02:55]}  Be6 {[%clk 0:02:38]} 14. Rb1 {[%clk 0:02:52]}  Rc8 {[%clk 0:02:34]} 15. Re1 {[%clk 0:02:50]}  Re8 {[%clk 0:02:31]} 16. Qd2 {[%clk 0:02:50]}  Qb6+ {[%clk 0:02:23]} 17. Kh1 {[%clk 0:02:50]}  a6 {[%clk 0:01:31]} 18. Bxh6 {[%clk 0:02:48]}  gxh6 {[%clk 0:01:25]} 19. Qxh6 {[%clk 0:02:48]}  Qd8 {[%clk 0:01:15]} 20. Re2 {[%clk 0:02:30]}  Nd4 {[%clk 0:00:54]} 21. Re5 {[%clk 0:02:30]}  Bf5 {[%clk 0:00:49]} 22. Rxf5 {[%clk 0:02:20]}  Nxf5 {[%clk 0:00:47]} 23. Bxf5 {[%clk 0:02:21]}  Rc4 {[%clk 0:00:33]} 24. Rd1 {[%clk 0:02:17]}  Rc6 {[%clk 0:00:31]} 25. h3 {[%clk 0:02:09]}  Re5 {[%clk 0:00:24]} 26. g4 {[%clk 0:01:56]}  Qf8 {[%clk 0:00:18]} 27. Qxf8+ {[%clk 0:01:51]}  Kxf8 {[%clk 0:00:16]} 28. Nxd5 {[%clk 0:01:52]} 0-1


[Site "https://www.chess.com"]

[Event "Titled Tuesday Blitz May 16 Early 2023"]
[White "Kubicka, Anna"]
[Black "Pakleza, Zbigniew"]
[WhiteFideId "1152254"]
[BlackFideId "1119290"]
[WhiteElo "2144"]
[BlackElo "2410"]
[Result "0-1"]
[Round "04"]
[TimeControl "180+2"]
[Date "2023.05.16"]
[WhiteClock "0:00:03"]
[BlackClock "0:00:08"]

1. e4 {[%clk 0:03:00]}  d5 {[%clk 0:02:59]} 2. exd5 {[%clk 0:03:00]}  Nf6 {[%clk 0:03:00]} 3. Nf3 {[%clk 0:02:59]}  Nxd5 {[%clk 0:03:00]} 4. Be2 {[%clk 0:02:59]}  Bf5 {[%clk 0:02:59]} 5. d3 {[%clk 0:02:58]}  e6 {[%clk 0:02:59]} 6. O-O {[%clk 0:02:59]}  Be7 {[%clk 0:03:00]} 7. Nc3 {[%clk 0:02:59]}  O-O {[%clk 0:03:00]} 8. Nxd5 {[%clk 0:02:59]}  exd5 {[%clk 0:03:00]} 9. Bf4 {[%clk 0:02:58]}  c5 {[%clk 0:02:59]} 10. d4 {[%clk 0:02:49]}  Nc6 {[%clk 0:02:58]} 11. c3 {[%clk 0:02:48]}  Re8 {[%clk 0:02:49]} 12. Re1 {[%clk 0:02:44]}  Qb6 {[%clk 0:02:44]} 13. Qd2 {[%clk 0:02:35]}  Rad8 {[%clk 0:02:35]} 14. Be3 {[%clk 0:02:22]}  c4 {[%clk 0:02:16]} 15. Bf4 {[%clk 0:02:15]}  Be4 {[%clk 0:01:54]} 16. Ne5 {[%clk 0:01:58]}  Nxe5 {[%clk 0:01:53]} 17. Bxe5 {[%clk 0:01:59]}  Qg6 {[%clk 0:01:50]} 18. f3 {[%clk 0:01:43]}  Bf5 {[%clk 0:01:47]} 19. Bf1 {[%clk 0:01:29]}  h5 {[%clk 0:01:42]} 20. Bf4 {[%clk 0:01:00]}  b5 {[%clk 0:01:13]} 21. Re5 {[%clk 0:00:59]}  f6 {[%clk 0:01:03]} 22. Re3 {[%clk 0:00:57]}  Qf7 {[%clk 0:01:02]} 23. Rae1 {[%clk 0:00:56]}  g5 {[%clk 0:00:53]} 24. Bc7 {[%clk 0:00:51]}  Rc8 {[%clk 0:00:51]} 25. Bg3 {[%clk 0:00:36]}  h4 {[%clk 0:00:51]} 26. Bf2 {[%clk 0:00:36]}  Bd6 {[%clk 0:00:51]} 27. Rxe8+ {[%clk 0:00:32]}  Rxe8 {[%clk 0:00:52]} 28. Rxe8+ {[%clk 0:00:31]}  Qxe8 {[%clk 0:00:53]} 29. Be3 {[%clk 0:00:27]}  Kf7 {[%clk 0:00:49]} 30. Be2 {[%clk 0:00:20]}  Qb8 {[%clk 0:00:48]} 31. h3 {[%clk 0:00:17]}  b4 {[%clk 0:00:40]} 32. Bd1 {[%clk 0:00:13]}  bxc3 {[%clk 0:00:36]} 33. bxc3 {[%clk 0:00:14]}  Qb1 {[%clk 0:00:35]} 34. Kf2 {[%clk 0:00:12]}  Bg3+ {[%clk 0:00:35]} 35. Kg1 {[%clk 0:00:11]}  a5 {[%clk 0:00:32]} 36. a4 {[%clk 0:00:08]}  Ke6 {[%clk 0:00:14]} 37. Qc1 {[%clk 0:00:08]}  Qa2 {[%clk 0:00:11]} 38. Qd2 {[%clk 0:00:08]}  Qa1 {[%clk 0:00:11]} 39. Qc1 {[%clk 0:00:07]}  Qa2 {[%clk 0:00:09]} 40. Qd2 {[%clk 0:00:08]}  Qa3 {[%clk 0:00:10]} 41. Qc1 {[%clk 0:00:07]}  Qd6 {[%clk 0:00:10]} 42. Qd2 {[%clk 0:00:07]}  Kd7 {[%clk 0:00:09]} 43. Qb2 {[%clk 0:00:05]}  Kc7 {[%clk 0:00:07]} 44. Qb5 {[%clk 0:00:04]}  Be1 {[%clk 0:00:05]} 45. Qxa5+ {[%clk 0:00:03]}  Kd7 {[%clk 0:00:06]} 46. Qa7+ {[%clk 0:00:02]}  Ke6 {[%clk 0:00:07]} 47. Qa8 {[%clk 0:00:01]}  Kf7 {[%clk 0:00:06]} 48. Qh8 {[%clk 0:00:01]}  Bxc3 {[%clk 0:00:05]} 49. Qh5+ {[%clk 0:00:01]}  Bg6 {[%clk 0:00:06]} 50. Qg4 {[%clk 0:00:01]}  Qe6 {[%clk 0:00:06]} 51. Qxe6+ {[%clk 0:00:01]}  Kxe6 {[%clk 0:00:07]} 52. Bc1 {[%clk 0:00:01]}  Bxd4+ {[%clk 0:00:07]} 53. Kf1 {[%clk 0:00:01]}  Bc5 {[%clk 0:00:06]} 54. Ke2 {[%clk 0:00:02]}  d4 {[%clk 0:00:06]} 55. a5 {[%clk 0:00:02]}  d3+ {[%clk 0:00:06]} 56. Kd2 {[%clk 0:00:03]}  Bb4+ {[%clk 0:00:07]} 57. Ke3 {[%clk 0:00:03]}  Bxa5 {[%clk 0:00:08]} 58. Bd2 {[%clk 0:00:03]}  Bb6# {[%clk 0:00:08]} 0-1


[Site "https://www.chess.com"]

[Event "Titled Tuesday Blitz May 16 Early 2023"]
[White "Kuzmin, Roman"]
[Black "Molina, Roberto Junio Brito"]
[WhiteFideId "44134932"]
[BlackFideId "2109450"]
[WhiteElo "2122"]
[BlackElo "2376"]
[Result "1-0"]
[Round "04"]
[TimeControl "180+2"]
[Date "2023.05.16"]
[WhiteClock "0:00:22"]
[BlackClock "0:00:10"]

1. e4 {[%clk 0:03:00]}  c5 {[%clk 0:02:59]} 2. Nf3 {[%clk 0:03:00]}  e6 {[%clk 0:02:58]} 3. d4 {[%clk 0:03:01]}  cxd4 {[%clk 0:02:58]} 4. Nxd4 {[%clk 0:03:01]}  Nc6 {[%clk 0:02:58]} 5. Nc3 {[%clk 0:03:01]}  Qc7 {[%clk 0:02:56]} 6. Be3 {[%clk 0:03:02]}  a6 {[%clk 0:02:55]} 7. Qd2 {[%clk 0:03:02]}  Nf6 {[%clk 0:02:55]} 8. O-O-O {[%clk 0:03:02]}  Bb4 {[%clk 0:02:54]} 9. f3 {[%clk 0:03:02]}  O-O {[%clk 0:02:53]} 10. Nb3 {[%clk 0:02:58]}  Na5 {[%clk 0:02:34]} 11. Nxa5 {[%clk 0:02:45]}  Qxa5 {[%clk 0:02:33]} 12. a3 {[%clk 0:02:45]}  Bxc3 {[%clk 0:02:25]} 13. Qxc3 {[%clk 0:02:46]}  Qxc3 {[%clk 0:02:26]} 14. bxc3 {[%clk 0:02:47]}  d5 {[%clk 0:02:26]} 15. Bc5 {[%clk 0:02:44]}  Re8 {[%clk 0:02:25]} 16. exd5 {[%clk 0:02:38]}  Nxd5 {[%clk 0:02:21]} 17. c4 {[%clk 0:02:37]}  Nf6 {[%clk 0:02:15]} 18. g4 {[%clk 0:02:30]}  Nd7 {[%clk 0:01:58]} 19. Be3 {[%clk 0:02:24]}  Ne5 {[%clk 0:01:56]} 20. Be2 {[%clk 0:02:24]}  Nc6 {[%clk 0:01:44]} 21. f4 {[%clk 0:02:17]}  e5 {[%clk 0:01:44]} 22. f5 {[%clk 0:02:17]}  f6 {[%clk 0:01:24]} 23. Rd6 {[%clk 0:02:09]}  Kf7 {[%clk 0:01:06]} 24. Rhd1 {[%clk 0:02:02]}  g6 {[%clk 0:01:05]} 25. Rf1 {[%clk 0:01:20]}  gxf5 {[%clk 0:01:04]} 26. gxf5 {[%clk 0:01:21]}  Nd4 {[%clk 0:00:49]} 27. Bh5+ {[%clk 0:01:19]}  Ke7 {[%clk 0:00:49]} 28. Rb6 {[%clk 0:00:44]}  Rd8 {[%clk 0:00:18]} 29. c3 {[%clk 0:00:44]}  Nxf5 {[%clk 0:00:17]} 30. Bc5+ {[%clk 0:00:44]}  Kd7 {[%clk 0:00:14]} 31. Rxf5 {[%clk 0:00:44]}  Kc7 {[%clk 0:00:14]} 32. Rfxf6 {[%clk 0:00:41]}  Rd7 {[%clk 0:00:12]} 33. Rbd6 {[%clk 0:00:25]}  Rg7 {[%clk 0:00:11]} 34. Bb6+ {[%clk 0:00:23]}  Kb8 {[%clk 0:00:10]} 35. Rf8 {[%clk 0:00:22]} 1-0


[Site "https://www.chess.com"]

[Event "Titled Tuesday Blitz May 16 Early 2023"]
[White "Panesar Vedant"]
[Black "Toncheva, Nadya"]
[WhiteFideId "35033018"]
[BlackFideId "2924056"]
[WhiteElo "2347"]
[BlackElo "2101"]
[Result "1-0"]
[Round "04"]
[TimeControl "180+2"]
[Date "2023.05.16"]
[WhiteClock "0:01:01"]
[BlackClock "0:00:10"]

1. e4 {[%clk 0:03:00]}  c5 {[%clk 0:02:57]} 2. Nf3 {[%clk 0:02:58]}  Nc6 {[%clk 0:02:58]} 3. d4 {[%clk 0:02:58]}  cxd4 {[%clk 0:02:58]} 4. Nxd4 {[%clk 0:02:59]}  g6 {[%clk 0:02:59]} 5. c4 {[%clk 0:03:00]}  Bg7 {[%clk 0:02:59]} 6. Be3 {[%clk 0:03:00]}  Nf6 {[%clk 0:03:00]} 7. Nc3 {[%clk 0:03:01]}  O-O {[%clk 0:03:00]} 8. Be2 {[%clk 0:02:59]}  d6 {[%clk 0:03:01]} 9. O-O {[%clk 0:03:00]}  Bd7 {[%clk 0:03:01]} 10. h3 {[%clk 0:03:01]}  Nxd4 {[%clk 0:03:00]} 11. Bxd4 {[%clk 0:03:01]}  Bc6 {[%clk 0:03:01]} 12. Qc2 {[%clk 0:03:02]}  Nd7 {[%clk 0:03:01]} 13. Bxg7 {[%clk 0:03:00]}  Kxg7 {[%clk 0:03:02]} 14. Rad1 {[%clk 0:03:01]}  Qb6 {[%clk 0:02:54]} 15. Nd5 {[%clk 0:02:56]}  Bxd5 {[%clk 0:02:54]} 16. exd5 {[%clk 0:02:57]}  Ne5 {[%clk 0:02:39]} 17. Kh2 {[%clk 0:02:54]}  g5 {[%clk 0:02:33]} 18. Qc3 {[%clk 0:02:53]}  Rac8 {[%clk 0:02:19]} 19. b4 {[%clk 0:02:53]}  f6 {[%clk 0:02:13]} 20. Rc1 {[%clk 0:02:41]}  Qc7 {[%clk 0:02:12]} 21. Qg3 {[%clk 0:02:40]}  Kh8 {[%clk 0:02:09]} 22. Rc3 {[%clk 0:02:32]}  b5 {[%clk 0:02:07]} 23. c5 {[%clk 0:02:30]}  dxc5 {[%clk 0:02:01]} 24. bxc5 {[%clk 0:02:31]}  b4 {[%clk 0:01:59]} 25. Rc2 {[%clk 0:02:29]}  Qd7 {[%clk 0:01:55]} 26. Rd1 {[%clk 0:02:22]}  Qf5 {[%clk 0:01:51]} 27. Rdd2 {[%clk 0:02:02]}  Rfd8 {[%clk 0:01:50]} 28. Bg4 {[%clk 0:01:44]}  Nxg4+ {[%clk 0:01:49]} 29. Qxg4 {[%clk 0:01:45]}  Qe5+ {[%clk 0:01:36]} 30. g3 {[%clk 0:01:45]}  f5 {[%clk 0:01:17]} 31. Qxg5 {[%clk 0:01:30]}  Rxd5 {[%clk 0:01:17]} 32. Rxd5 {[%clk 0:01:31]}  Qxd5 {[%clk 0:01:16]} 33. Qxe7 {[%clk 0:01:31]}  Kg8 {[%clk 0:01:06]} 34. c6 {[%clk 0:01:30]}  Qe4 {[%clk 0:00:47]} 35. Qg5+ {[%clk 0:01:24]}  Kf7 {[%clk 0:00:44]} 36. Rd2 {[%clk 0:01:23]}  Qxc6 {[%clk 0:00:40]} 37. Qxf5+ {[%clk 0:01:23]}  Kg8 {[%clk 0:00:37]} 38. Rd7 {[%clk 0:01:19]}  Qg6 {[%clk 0:00:28]} 39. Qd5+ {[%clk 0:01:17]}  Kh8 {[%clk 0:00:28]} 40. Qd4+ {[%clk 0:01:18]}  Kg8 {[%clk 0:00:28]} 41. Rxa7 {[%clk 0:01:12]}  Rf8 {[%clk 0:00:25]} 42. Rd7 {[%clk 0:01:03]}  h5 {[%clk 0:00:20]} 43. Rd8 {[%clk 0:00:58]}  Rxd8 {[%clk 0:00:17]} 44. Qxd8+ {[%clk 0:00:59]}  Kh7 {[%clk 0:00:17]} 45. Qe7+ {[%clk 0:00:59]}  Kg8 {[%clk 0:00:17]} 46. Qxb4 {[%clk 0:01:00]}  Qf7 {[%clk 0:00:10]} 47. Qb3 {[%clk 0:01:01]} 1-0


[Site "https://www.chess.com"]

[Event "Titled Tuesday Blitz May 16 Early 2023"]
[White "Harshavardhan G B"]
[Black "Pham, Le Thao Nguyen"]
[WhiteFideId "25059009"]
[BlackFideId "12401226"]
[WhiteElo "2323"]
[BlackElo "2286"]
[Result "1-0"]
[Round "04"]
[TimeControl "180+2"]
[Date "2023.05.16"]
[WhiteClock "0:01:24"]
[BlackClock "0:00:10"]

1. e4 {[%clk 0:03:00]}  c5 {[%clk 0:02:56]} 2. Nc3 {[%clk 0:03:00]}  e6 {[%clk 0:02:53]} 3. g3 {[%clk 0:02:58]}  a6 {[%clk 0:02:51]} 4. a4 {[%clk 0:02:57]}  Nc6 {[%clk 0:02:50]} 5. Bg2 {[%clk 0:02:57]}  g6 {[%clk 0:02:50]} 6. Nge2 {[%clk 0:02:57]}  Bg7 {[%clk 0:02:47]} 7. O-O {[%clk 0:02:57]}  Nge7 {[%clk 0:02:47]} 8. d3 {[%clk 0:02:57]}  d6 {[%clk 0:02:44]} 9. f4 {[%clk 0:02:55]}  O-O {[%clk 0:02:43]} 10. Be3 {[%clk 0:02:55]}  Nd4 {[%clk 0:02:43]} 11. Bf2 {[%clk 0:02:51]}  Nxe2+ {[%clk 0:02:33]} 12. Qxe2 {[%clk 0:02:52]}  Rb8 {[%clk 0:02:30]} 13. e5 {[%clk 0:02:49]}  dxe5 {[%clk 0:01:57]} 14. fxe5 {[%clk 0:02:48]}  Qc7 {[%clk 0:01:57]} 15. Rae1 {[%clk 0:02:44]}  b6 {[%clk 0:01:39]} 16. g4 {[%clk 0:02:38]}  Bb7 {[%clk 0:01:34]} 17. Bxb7 {[%clk 0:02:33]}  Rxb7 {[%clk 0:01:32]} 18. Bg3 {[%clk 0:02:30]}  Nc6 {[%clk 0:01:24]} 19. Ne4 {[%clk 0:02:29]}  Kh8 {[%clk 0:01:03]} 20. Nf6 {[%clk 0:02:23]}  Qd8 {[%clk 0:00:49]} 21. c3 {[%clk 0:02:20]}  b5 {[%clk 0:00:43]} 22. Qe4 {[%clk 0:02:14]}  Rb6 {[%clk 0:00:39]} 23. g5 {[%clk 0:02:13]}  h5 {[%clk 0:00:26]} 24. gxh6 {[%clk 0:02:10]}  Bxh6 {[%clk 0:00:26]} 25. axb5 {[%clk 0:01:35]}  axb5 {[%clk 0:00:22]} 26. Bf4 {[%clk 0:01:26]}  g5 {[%clk 0:00:10]} 27. Qh7# {[%clk 0:01:24]} 1-0


[Site "https://www.chess.com"]

[Event "Titled Tuesday Blitz May 16 Early 2023"]
[White "Lavrik, Dmitry"]
[Black "Balla, Tamas-Kristof"]
[WhiteFideId "24113190"]
[BlackFideId "1208497"]
[WhiteElo "2345"]
[BlackElo "2334"]
[Result "1-0"]
[Round "04"]
[TimeControl "180+2"]
[Date "2023.05.16"]
[WhiteClock "0:00:20"]
[BlackClock "0:00:24"]

1. c4 {[%clk 0:02:46]}  c5 {[%clk 0:02:58]} 2. Nf3 {[%clk 0:02:45]}  Nc6 {[%clk 0:02:58]} 3. e3 {[%clk 0:02:44]}  Nf6 {[%clk 0:02:57]} 4. Nc3 {[%clk 0:02:41]}  g6 {[%clk 0:02:52]} 5. d4 {[%clk 0:02:40]}  cxd4 {[%clk 0:02:52]} 6. exd4 {[%clk 0:02:41]}  d5 {[%clk 0:02:53]} 7. cxd5 {[%clk 0:02:26]}  Nxd5 {[%clk 0:02:52]} 8. Bc4 {[%clk 0:02:24]}  Nxc3 {[%clk 0:02:49]} 9. Qb3 {[%clk 0:02:24]}  e6 {[%clk 0:02:49]} 10. bxc3 {[%clk 0:02:23]}  Bd7 {[%clk 0:02:44]} 11. Be2 {[%clk 0:02:11]}  Na5 {[%clk 0:02:43]} 12. Qc2 {[%clk 0:02:05]}  Bg7 {[%clk 0:02:43]} 13. h4 {[%clk 0:02:04]}  h5 {[%clk 0:02:36]} 14. Ba3 {[%clk 0:02:02]}  Bf8 {[%clk 0:02:34]} 15. Bxf8 {[%clk 0:02:02]}  Kxf8 {[%clk 0:02:35]} 16. c4 {[%clk 0:02:01]}  Rc8 {[%clk 0:02:32]} 17. c5 {[%clk 0:01:53]}  b6 {[%clk 0:02:31]} 18. O-O {[%clk 0:01:49]}  Qe7 {[%clk 0:02:26]} 19. Rac1 {[%clk 0:01:47]}  Kg7 {[%clk 0:02:25]} 20. Qb2 {[%clk 0:01:45]}  bxc5 {[%clk 0:02:15]} 21. dxc5+ {[%clk 0:01:27]}  Qf6 {[%clk 0:02:15]} 22. Qa3 {[%clk 0:01:25]}  Nc6 {[%clk 0:02:08]} 23. Rfd1 {[%clk 0:01:25]}  Rhd8 {[%clk 0:02:07]} 24. Rd6 {[%clk 0:01:24]}  Be8 {[%clk 0:02:01]} 25. Rcd1 {[%clk 0:01:24]}  Rxd6 {[%clk 0:01:57]} 26. cxd6 {[%clk 0:01:25]}  Bd7 {[%clk 0:01:56]} 27. Bb5 {[%clk 0:01:14]}  e5 {[%clk 0:01:53]} 28. Ng5 {[%clk 0:00:50]}  Rd8 {[%clk 0:01:14]} 29. Bxc6 {[%clk 0:00:48]}  Bxc6 {[%clk 0:01:14]} 30. Qxa7 {[%clk 0:00:48]}  e4 {[%clk 0:01:04]} 31. Qc7 {[%clk 0:00:43]}  Ba4 {[%clk 0:01:01]} 32. Rd4 {[%clk 0:00:35]}  Rd7 {[%clk 0:00:54]} 33. Qc5 {[%clk 0:00:34]}  e3 {[%clk 0:00:48]} 34. fxe3 {[%clk 0:00:29]}  Rb7 {[%clk 0:00:40]} 35. Rxa4 {[%clk 0:00:28]}  Rb1+ {[%clk 0:00:38]} 36. Kh2 {[%clk 0:00:28]}  Rd1 {[%clk 0:00:32]} 37. Rf4 {[%clk 0:00:21]}  Qa1 {[%clk 0:00:24]} 38. Rxf7+ {[%clk 0:00:20]} 1-0


[Site "https://www.chess.com"]

[Event "Titled Tuesday Blitz May 16 Early 2023"]
[White "bubeliang"]
[Black "Osinovsky, Stepan"]
[BlackFideId "4157354"]
[WhiteElo "2611"]
[BlackElo "2222"]
[Result "0-1"]
[Round "04"]
[TimeControl "180+2"]
[Date "2023.05.16"]
[WhiteClock "0:00:49"]
[BlackClock "0:00:12"]

1. e4 {[%clk 0:03:00]}  e5 {[%clk 0:02:59]} 2. Nc3 {[%clk 0:02:58]}  Nf6 {[%clk 0:02:59]} 3. Bc4 {[%clk 0:02:58]}  Nxe4 {[%clk 0:02:58]} 4. Qh5 {[%clk 0:02:57]}  Nd6 {[%clk 0:02:51]} 5. Bb3 {[%clk 0:02:56]}  Nc6 {[%clk 0:02:51]} 6. Nb5 {[%clk 0:02:56]}  g6 {[%clk 0:02:51]} 7. Qf3 {[%clk 0:02:56]}  f5 {[%clk 0:02:50]} 8. Qd5 {[%clk 0:02:55]}  Qe7 {[%clk 0:02:50]} 9. Nxc7+ {[%clk 0:02:55]}  Kd8 {[%clk 0:02:51]} 10. Nxa8 {[%clk 0:02:56]}  b6 {[%clk 0:02:51]} 11. h4 {[%clk 0:02:56]}  Bb7 {[%clk 0:02:50]} 12. Qf3 {[%clk 0:02:55]}  Nd4 {[%clk 0:02:21]} 13. Qh3 {[%clk 0:02:53]}  Bg7 {[%clk 0:02:16]} 14. d3 {[%clk 0:02:50]}  h6 {[%clk 0:02:10]} 15. Nxb6 {[%clk 0:02:44]}  axb6 {[%clk 0:02:11]} 16. Be3 {[%clk 0:02:44]}  Nxb3 {[%clk 0:01:44]} 17. Bxb6+ {[%clk 0:02:38]}  Kc8 {[%clk 0:01:43]} 18. axb3 {[%clk 0:02:38]}  e4 {[%clk 0:01:41]} 19. O-O-O {[%clk 0:02:36]}  Re8 {[%clk 0:01:11]} 20. Qe3 {[%clk 0:02:26]}  Qf6 {[%clk 0:00:53]} 21. Qc5+ {[%clk 0:02:09]}  Bc6 {[%clk 0:00:53]} 22. d4 {[%clk 0:02:07]}  Bf8 {[%clk 0:00:20]} 23. Qa5 {[%clk 0:02:01]}  Nb5 {[%clk 0:00:16]} 24. c4 {[%clk 0:01:51]}  Kb7 {[%clk 0:00:15]} 25. cxb5 {[%clk 0:01:49]}  Ra8 {[%clk 0:00:16]} 26. bxc6+ {[%clk 0:01:47]}  Qxc6+ {[%clk 0:00:16]} 27. Qc5 {[%clk 0:01:38]}  Bxc5 {[%clk 0:00:16]} 28. dxc5 {[%clk 0:01:37]}  Ra1+ {[%clk 0:00:15]} 29. Kc2 {[%clk 0:01:37]}  Rxd1 {[%clk 0:00:15]} 30. Kxd1 {[%clk 0:01:37]}  Qd5+ {[%clk 0:00:15]} 31. Kc2 {[%clk 0:01:35]}  Qd3+ {[%clk 0:00:15]} 32. Kc1 {[%clk 0:01:32]}  Qf1+ {[%clk 0:00:16]} 33. Kc2 {[%clk 0:01:31]}  Qxg2 {[%clk 0:00:17]} 34. Rh3 {[%clk 0:01:26]}  Qxg1 {[%clk 0:00:17]} 35. Rc3 {[%clk 0:01:24]}  Qxf2+ {[%clk 0:00:16]} 36. Kb1 {[%clk 0:01:24]}  Qf1+ {[%clk 0:00:16]} 37. Ka2 {[%clk 0:01:23]}  Kc6 {[%clk 0:00:16]} 38. Rc4 {[%clk 0:01:21]}  Qd3 {[%clk 0:00:13]} 39. Rc3 {[%clk 0:01:15]}  Qa6+ {[%clk 0:00:12]} 40. Kb1 {[%clk 0:01:15]}  f4 {[%clk 0:00:12]} 41. b4 {[%clk 0:01:14]}  e3 {[%clk 0:00:12]} 42. Rb3 {[%clk 0:00:52]}  e2 {[%clk 0:00:11]} 43. b5+ {[%clk 0:00:52]}  Qxb5 {[%clk 0:00:11]} 44. Rxb5 {[%clk 0:00:52]}  Kxb5 {[%clk 0:00:12]} 45. Ba5 {[%clk 0:00:50]}  Kxa5 {[%clk 0:00:12]} 46. Kc2 {[%clk 0:00:49]}  e1=Q {[%clk 0:00:12]} 0-1


[Site "https://www.chess.com"]

[Event "Titled Tuesday Blitz May 16 Early 2023"]
[White "Tanmay Jain"]
[Black "Mamedov, Edgar"]
[WhiteFideId "45015481"]
[BlackFideId "13739980"]
[WhiteElo "2032"]
[BlackElo "2317"]
[Result "1-0"]
[Round "04"]
[TimeControl "180+2"]
[Date "2023.05.16"]
[WhiteClock "0:01:15"]
[BlackClock "0:01:41"]

1. e4 {[%clk 0:03:00]}  Nc6 {[%clk 0:03:00]} 2. Nf3 {[%clk 0:03:00]}  d6 {[%clk 0:03:00]} 3. d3 {[%clk 0:03:00]}  Nf6 {[%clk 0:03:00]} 4. Be2 {[%clk 0:03:00]}  g6 {[%clk 0:02:59]} 5. O-O {[%clk 0:03:01]}  Bg7 {[%clk 0:03:00]} 6. Re1 {[%clk 0:03:01]}  O-O {[%clk 0:03:00]} 7. h3 {[%clk 0:03:02]}  e5 {[%clk 0:03:00]} 8. c3 {[%clk 0:03:01]}  h6 {[%clk 0:02:59]} 9. Bf1 {[%clk 0:03:00]}  Nh7 {[%clk 0:02:54]} 10. d4 {[%clk 0:02:56]}  f5 {[%clk 0:02:52]} 11. exf5 {[%clk 0:02:55]}  gxf5 {[%clk 0:02:52]} 12. dxe5 {[%clk 0:02:49]}  dxe5 {[%clk 0:02:51]} 13. Na3 {[%clk 0:02:41]}  e4 {[%clk 0:02:51]} 14. Bc4+ {[%clk 0:02:41]}  Kh8 {[%clk 0:02:51]} 15. Qxd8 {[%clk 0:02:41]}  Rxd8 {[%clk 0:02:50]} 16. Nh4 {[%clk 0:02:41]}  Ne5 {[%clk 0:02:46]} 17. Bf4 {[%clk 0:02:36]}  Ng5 {[%clk 0:02:42]} 18. Bxe5 {[%clk 0:02:34]}  Bxe5 {[%clk 0:02:39]} 19. Ng6+ {[%clk 0:02:33]}  Kg7 {[%clk 0:02:39]} 20. Nxe5 {[%clk 0:02:34]}  Kf6 {[%clk 0:02:39]} 21. f4 {[%clk 0:02:32]}  exf3 {[%clk 0:02:37]} 22. Nxf3 {[%clk 0:02:32]}  Nxf3+ {[%clk 0:02:37]} 23. gxf3 {[%clk 0:02:32]}  f4 {[%clk 0:02:38]} 24. Re4 {[%clk 0:02:17]}  Bf5 {[%clk 0:02:31]} 25. Re2 {[%clk 0:01:54]}  Rg8+ {[%clk 0:02:29]} 26. Bxg8 {[%clk 0:01:53]}  Rxg8+ {[%clk 0:02:29]} 27. Rg2 {[%clk 0:01:48]}  Re8 {[%clk 0:02:28]} 28. Rd1 {[%clk 0:01:47]}  Re3 {[%clk 0:02:25]} 29. Kf2 {[%clk 0:01:40]}  Bd3 {[%clk 0:02:24]} 30. Rd2 {[%clk 0:01:39]}  h5 {[%clk 0:02:23]} 31. Rg1 {[%clk 0:01:38]}  Bf5 {[%clk 0:02:11]} 32. Re1 {[%clk 0:01:37]}  Rxe1 {[%clk 0:02:11]} 33. Kxe1 {[%clk 0:01:38]}  Kg5 {[%clk 0:02:09]} 34. Nb5 {[%clk 0:01:33]}  c6 {[%clk 0:02:09]} 35. Nd4 {[%clk 0:01:31]}  Bxh3 {[%clk 0:02:08]} 36. Re2 {[%clk 0:01:25]}  Kf6 {[%clk 0:02:05]} 37. Re4 {[%clk 0:01:24]}  h4 {[%clk 0:02:02]} 38. Rxf4+ {[%clk 0:01:21]}  Kg5 {[%clk 0:02:02]} 39. Re4 {[%clk 0:01:21]}  Bd7 {[%clk 0:01:59]} 40. Kf2 {[%clk 0:01:21]}  c5 {[%clk 0:01:58]} 41. Re5+ {[%clk 0:01:20]}  Kf6 {[%clk 0:01:54]} 42. Rxc5 {[%clk 0:01:21]}  b6 {[%clk 0:01:53]} 43. Rd5 {[%clk 0:01:20]}  Bc8 {[%clk 0:01:53]} 44. Rh5 {[%clk 0:01:19]}  h3 {[%clk 0:01:52]} 45. Ne2 {[%clk 0:01:17]}  Be6 {[%clk 0:01:45]} 46. b3 {[%clk 0:01:15]}  Kg6 {[%clk 0:01:41]} 47. Nf4+ {[%clk 0:01:15]} 1-0


[Site "https://www.chess.com"]